Cogmind - Beta 17 @@@ ROGUE MODE // 2026.08.13 @ 15:06:36 Player: Marc Result: Self-destructed Performance ------------- Evolutions (1) 500 Regions Visited (3) 600 Robots Destroyed (15) 75 Value Destroyed (475) 475 Prototype IDs (0) 0 Alien Tech Used (0) 0 Bonus (0) 0 TOTAL SCORE: 1650 Bonus ------- None Cogmind --------- Core Integrity 281/400 Matter 300/300 Energy 36/100 System Corruption 0% Temperature Cool (12) Movement Flying (120) Ox1 Location -9/Materials Parts ------- > --- POWER (1) -------- (None) > --- PROPULSION (2) --- Flight Unit > --- UTILITY (4) ------ Signal Interpreter ECM Suite > --- WEAPON (2) ------- Light Assault Rifle Mining Claw > --- INVENTORY (5) ---- Small Storage Unit Sensor Array Rocket Launcher Mining Claw Peak State ------------ > --- POWER ------------ Light Ion Engine > --- PROPULSION ------- Flight Unit Flight Unit > --- UTILITY ---------- Sensor Array Signal Interpreter ECM Suite > --- WEAPON ----------- Light Assault Rifle Mining Claw > --- INVENTORY -------- Flight Unit Small Storage Unit Rocket Launcher Mining Claw [Rating: 8] Favorites ----------- Power Light Ion Engine Engine Light Ion Engine Propulsion Aluminum Leg Leg Aluminum Leg Flight Unit Flight Unit Utility ECM Suite Device ECM Suite Storage Small Storage Unit Processor Signal Interpreter Weapon Light Assault Rifle Energy Gun Small Laser Ballistic Gun Light Assault Rifle Launcher Grenade Launcher Slashing Weapon Mining Claw Special Melee Weapon Datajack Build | -11 -10 -10 -9 ------- Run | Yrd Mat Min Mat Slots Evolved 2 | . . . 2 Power . | . . . . Propulsion . | . . . . Utility 2 | . . . 2 Weapon . | . . . . Parts Attached 16 | . 7 6 3 Power 1 | . 1 . . Engine 1 | . 1 . . Core . | . . . . Reactor . | . . . . Propulsion 5 | . 1 2 2 Treads . | . . . . Leg 1 | . 1 . . Wheel . | . . . . Hover . | . . . . Flight 4 | . . 2 2 Utility 4 | . 3 . 1 Device 3 | . 2 . 1 Storage . | . . . . Processor 1 | . 1 . . Hackware . | . . . . Protection . | . . . . Artifact . | . . . . Weapon 6 | . 2 4 . Energy Gun . | . . . . Energy Cannon . | . . . . Ballistic Gun 2 | . 1 1 . Ballistic Cannon . | . . . . Launcher 1 | . . 1 . Special Weapon . | . . . . Impact Weapon . | . . . . Slashing Weapon 2 | . 1 1 . Piercing Weapon . | . . . . Special Melee Weapon 1 | . . 1 . Unidentified Prototypes . | . . . . Parts Lost 6 | . 2 1 3 Power 2 | . 1 . 1 Propulsion 3 | . . 1 2 Utility . | . . . . Weapon 1 | . 1 . . Highest Loss Streak 3 | . 2 1 3 To Critical Strikes . | . . . . Average Backups 5 | . 5 4 4 Power . | . . . . Propulsion 2 | . 2 1 . Utility 1 | . 1 1 1 Weapon 1 | . 1 1 2 Tool/Special . | . . . . Unused Backups 11 | . 8 2 1 Power 1 | . 1 . . Propulsion 7 | . 5 2 . Utility 1 | . . . 1 Weapon 2 | . 2 . . Tool/Special . | . . . . Average Slot Usage (%) 95 | . 96 99 74 Engine 13 | . 13 14 8 Leg 18 | . 28 2 . Flight 8 | . . 24 20 Device 12 | . 11 14 12 Storage 4 | . 7 . . Processor 8 | . 6 14 11 Energy Gun 11 | . 17 . . Ballistic Gun 10 | . 8 14 11 Slashing Weapon 6 | . 2 14 11 Peak Build Rating 8 | . 7 7 8 Average Rating 6 | . 6 6 7 On Entrance 6 | 6 6 7 7 Avg Prop Armor Cover (%) . | . . . . Naked Turns . | . . . . Heaviest Build 12 | 11 12 8 8 Greatest Support 20 | 20 20 20 8 Greatest Overweight (x) 1 | . . . 1 Average Overweight (x) . | . . . . Largest Inventory Capacity 8 | . 8 5 5 Average Capacity 6 | . 6 5 5 Most Carried 7 | . 7 5 5 Average Carried 5 | . 5 4 4 Final Capacity 8 | 8 5 5 5 Final Carried 6 | 6 4 5 4 Class Distribution -------------------- 100% | Mutant Dominant Class ---------------- Mutant | -10/Materials Mutant | -10/Mines Mutant | -9/Materials Resources | -11 -10 -10 -9 ----------- Run | Yrd Mat Min Mat Matter Collected 414 | 200 72 114 28 Remotely . | . . . . Salvage Created 625 | . 404 133 88 Parts 43 | . 25 12 6 Haulers Intercepted . | . . . . Recyclers Shooed . | . . . . Parts Field Recycled . | . . . . Retrieved Matter . | . . . . Parts Self-Destructed . | . . . . Prevented . | . . . . Parts Restored . | . . . . Kills | -11 -10 -10 -9 ------- Run | Yrd Mat Min Mat Combat Hostiles Destroyed 15 | . 10 3 2 Melee 2 | . . . 2 Guns 13 | . 10 3 . Classes Destroyed 3 | . 1 1 1 Swarmer 3 | . . 3 . Grunt 11 | . 10 . 1 Sentry 1 | . . . 1 Best Kill Streak 4 | . 4 3 2 Combat Bots Only 4 | . 4 3 2 Max Kills in Single Turn 1 | . 1 1 1 Gunslinging . | . . . . Exploded . | . . . . Melee 1 | . . . 1 Uniques/NPCs Destroyed . | . . . . Combat | -11 -10 -10 -9 -------- Run | Yrd Mat Min Mat Hostile Shots Fired 108 | . 47 30 31 Missed 28 | . 10 8 10 Hits 80 | . 37 22 21 Projectile 80 | . 37 22 21 Critical Strikes 1 | . . . 1 Damage Taken 975 | . 483 198 294 Core 319 | . 137 63 119 Absorbed by Shields . | . . . . Core Remaining (%) 60 | 100 . 20 . Volleys Fired 46 | . 28 14 4 Largest 2 | . 2 1 1 Hottest 90 | . 90 20 20 Shots Fired 71 | . 53 14 4 Gun 71 | . 53 14 4 Cannon . | . . . . Launcher . | . . . . Special . | . . . . Kinetic 40 | . 22 14 4 Thermal 31 | . 31 . . Explosive . | . . . . Electromagnetic . | . . . . Robot Hit Streak 16 | . 16 2 2 Robot Miss Streak 3 | . 2 3 1 Penetration Max . | . . . . Secondary Targets 3 | . 3 . . Max Gunslinging Chain 1 | . 1 . . Shots Hit Robots 61 | . 44 11 6 Core Hits 32 | . 23 6 3 Critical Kills 1 | . 1 . . Critical Parts Destroyed . | . . . . Critical Strikes 1 | . 1 . . Destroy 1 | . 1 . . Melee Attacks 29 | . 13 9 7 Impact . | . . . . Slashing 26 | . 13 6 7 Piercing . | . . . . Sneak Attacks . | . . . . Combat Hostiles . | . . . . Follow-up Attacks . | . . . . Damage Inflicted 689 | . 443 150 96 Guns 522 | . 443 57 22 Cannons . | . . . . Explosions . | . . . . Melee 167 | . . 93 74 Ramming . | . . . . Kinetic 201 | . 122 57 22 Thermal 321 | . 321 . . Explosive . | . . . . Electromagnetic . | . . . . Impact . | . . . . Slashing 167 | . . 93 74 Piercing . | . . . . Highest Corruption . | . . . . Average Corruption . | . . . . Corruption Purged . | . . . . Corruption Blocked . | . . . . Overload Shots . | . . . . Overflow Damage 22 | . . 22 . Projectiles . | . . . . Explosions . | . . . . Melee 22 | . . 22 . Knockbacks . | . . . . Impact . | . . . . Kinetic . | . . . . Secondary . | . . . . Self-Inflicted Damage . | . . . . Shots . | . . . . Rammed . | . . . . Targets Rammed . | . . . . Kicked . | . . . . Crushed . | . . . . Highest Temperature 88 | . 88 6 10 Average Temperature 28 | . 29 6 6 Received Heat Transfer 369 | . 246 . 123 Siege Activations . | . . . . Martial Activations . | . . . . Shielding Activations . | . . . . Robots Disrupted . | . . . . Combat Hostiles . | . . . . Robots Corrupted . | . . . . Combat Hostiles . | . . . . Parts Fried . | . . . . Impact Corruptions . | . . . . Robots Melted . | . . . . Combat Hostiles . | . . . . Parts Melted . | . . . . Heat Transferred 748 | . 748 . . Parts Sabotaged . | . . . . Parts Stolen . | . . . . Parts Stripped . | . . . . Power Chain Reactions . | . . . . Alert | -11 -10 -10 -9 ------- Run | Yrd Mat Min Mat Maximum Alert Level . | . . . . Low Security (%) 100 | . 100 100 100 Level 1 . | . . . . Level 2 . | . . . . Level 3 . | . . . . Level 4 . | . . . . Level 5 . | . . . . High Security . | . . . . Max Security . | . . . . Peak Influence 124 | . 124 55 48 Initial 5 | . . 5 . Average 36 | . 49 13 13 Influence Increases 462 | . 307 81 74 Destroy 0b10 Robot/C 300 | . 200 60 40 Destroy 0b10 Robot/NC 10 | . . 10 . Destroy Leader 70 | . 50 10 10 Successful Hack 43 | . 20 . 23 Destroy Structure 9 | . 7 1 1 Lose Combat Pursuer 30 | . 30 . . Influence Decreases 443 | . 293 95 55 Entered New Map 9 | . . 9 . Time Decay 384 | . 283 76 25 Lost Part 50 | . 10 10 30 Squads Dispatched 5 | . 4 . 1 Investigation 4 | . 3 . 1 Extermination . | . . . . Reinforcement 1 | . 1 . . Assault . | . . . . Garrison . | . . . . Intercept . | . . . . Searches Triggered . | . . . . Construction Impeded . | . . . . Haulers Reinforced . | . . . . Active Scanning Responses . | . . . . Cargo Convoy Interrupts . | . . . . Stealth | -11 -10 -10 -9 --------- Run | Yrd Mat Min Mat Distress Signals 3 | . 2 . 1 Communications Jammed . | . . . . Distress Signals . | . . . . Times Spotted 38 | . 24 5 9 Peak Tracking Total 8 | . 7 3 8 Tactical Retreats 6 | . 4 . 2 ECM-based Alert Blocks 10 | . 6 . 4 Traps | -11 -10 -10 -9 ------- Run | Yrd Mat Min Mat Traps Triggered 3 | . 3 . . Indirectly . | . . . . Trap Hack Attempts . | . . . . Triggered . | . . . . Disarmed . | . . . . Reprogrammed . | . . . . Reused . | . . . . Traps Extracted . | . . . . Installed . | . . . . Triggered . | . . . . Machines | -11 -10 -10 -9 ---------- Run | Yrd Mat Min Mat Machines Disabled 1 | . 1 . . Max in Single Turn 1 | . 1 . . Machines Repaired . | . . . . Machines Dismantled . | . . . . Machines Sabotaged . | . . . . Overloaded Fab Kills . | . . . . Hacking | -11 -10 -10 -9 --------- Run | Yrd Mat Min Mat Machines Accessed 11 | . 5 . 6 Terminals 11 | . 5 . 6 Fabricators . | . . . . Repair Stations . | . . . . Recycling Units . | . . . . Scanalyzers . | . . . . Garrison Access . | . . . . Total Hacks 29 | . 15 . 14 Successful 18 | . 11 . 7 Failed 11 | . 4 . 7 Catastrophic 1 | . 1 . . Database Lockouts . | . . . . Manual 23 | . 10 . 13 Terminals 29 | . 15 . 14 Fabricators . | . . . . Repair Stations . | . . . . Recycling Units . | . . . . Scanalyzers . | . . . . Garrison Access . | . . . . Terminal Hacks 7 | . 5 . 2 Recall Investigation 2 | . 1 . 1 Hauler Manifests 1 | . 1 . . Registered Components 1 | . 1 . . Zone Layout 3 | . 2 . 1 Fabricator Hacks . | . . . . Repair Station Hacks . | . . . . Recycling Unit Hacks . | . . . . Scanalyzer . | . . . . Garrison Access Hacks . | . . . . Unauthorized Hacks 11 | . 6 . 5 Terminals 11 | . 6 . 5 Track 2 | . 1 . 1 Botnet 9 | . 5 . 4 Fabricators . | . . . . Repair Stations . | . . . . Recycling Units . | . . . . Scanalyzers . | . . . . Garrison Access . | . . . . Data Cores Recovered . | . . . . Used . | . . . . Hacking Detections 9 | . 3 . 6 Full Trace Events 2 | . 1 . 1 Feedback Events . | . . . . Feedback Blocked . | . . . . Robot Schematics Acquired . | . . . . Robots Built . | . . . . Authchips . | . . . . Time . | . . . . Total Robot Build Rating . | . . . . Part Schematics Acquired . | . . . . Parts Built . | . . . . Authchips . | . . . . Time . | . . . . Total Part Build Rating . | . . . . Part Studies Acquired . | . . . . Parts Repaired . | . . . . Time . | . . . . Parts Recycled . | . . . . Recycled Matter . | . . . . Retrieved Matter . | . . . . Retrieved Components . | . . . . Parts Scanalyzed . | . . . . Part Schematics Acquired . | . . . . Parts Damaged . | . . . . Bothacking | -11 -10 -10 -9 ------------ Run | Yrd Mat Min Mat Used RIF Installer . | . . . . Robots Hacked . | . . . . Non-combat . | . . . . Combat . | . . . . Robot Hacks Applied . | . . . . Relay Couplers Released . | . . . . Fabnet Peak Effective % . | . . . . Robots Rewired . | . . . . Allies Hacked . | . . . . Hacks Repelled . | . . . . Allies | -11 -10 -10 -9 -------- Run | Yrd Mat Min Mat Total Allies . | . . . . Largest Group . | . . . . Highest-Rated Group . | . . . . Highest-Rated Ally . | . . . . Total Orders . | . . . . Ally Attacks . | . . . . Total Damage . | . . . . Kills . | . . . . Allies Corrupted . | . . . . Allies Melted . | . . . . Intel | -11 -10 -10 -9 ------- Run | Yrd Mat Min Mat Active Infowar (turns) 1003 | . 597 309 97 Sensors 1 | . . . 1 Seismic 160 | . 160 . . ECM 843 | . 437 309 97 Robot Analysis Total . | . . . . Derelict Logs Recovered 1 | . . 1 . Drone Launches . | . . . . Drone Recoveries . | . . . . Exploration | -11 -10 -10 -9 ------------- Run | Yrd Mat Min Mat Turns Passed 1146 | . 740 309 97 Spaces Moved 1125 | 1 451 521 152 Core . | . . . . Treads . | . . . . Legs 457 | 1 451 5 . Wheels . | . . . . Hover . | . . . . Flight 668 | . . 516 152 Fastest Speed 34 | 120 120 37 34 Average Speed 70 | 120 120 37 37 Slowest Speed 120 | 120 120 120 120 Overloaded Moves . | . . . . Propulsion Burnouts . | . . . . Robots Hopped . | . . . . Potential Cave-ins . | . . . . Cave-ins Triggered . | . . . . Exploration Rate (%) 44 | 2 70 84 20 Regions Visited 3 Branch Regions 1 Pre-discovered Areas . | . . . . Known Exits Taken 2 | . 1 1 . Unknown Exits Taken 1 | 1 . . . Scrap Searched 1 | . . 1 . Spaces Dug 10 | . 7 2 1 Terrain Destroyed 10 | . 7 2 1 Melee 10 | . 7 2 1 Projectile . | . . . . AOE . | . . . . Terrain Rammed . | . . . . Walls Destroyed . | . . . . Machines Disabled . | . . . . Actions | -11 -10 -10 -9 --------- Run | Yrd Mat Min Mat Total 1363 | . 578 609 176 Wait 113 | . 67 38 8 Move 1122 | . 450 520 152 Hop . | . . . . Pick Up 14 | . 6 8 . Fast Attach 1 | . . 1 . Attach 11 | . 6 3 2 Detach 3 | . 2 . 1 Swap 7 | . 1 5 1 Drop 14 | . 5 8 1 Fire 46 | . 28 14 4 Melee 29 | . 13 9 7 Ram . | . . . . Kick . | . . . . Crush . | . . . . Escape Stasis . | . . . . Rewire 3 | . . 3 . Trap . | . . . . Miscellaneous . | . . . . Route ------- -11/Scrapyard -10/Materials (discovered 2 exits: *Mat / *Min) -10/Mines -9/Materials History --------- Turn | Location | Event 1 | -11/Scrapyard | Discovered new exit (range 0) 1 | -11/Scrapyard | Entered Materials 2 | -10/Materials | Met a group of wandering Federalists 15 | -10/Materials | Discovered new exit (range 16) 325 | -10/Materials | Build established: Mutant 455 | -10/Materials | Core integrity fell below 50% 504 | -10/Materials | Discovered new exit (range 5) 516 | -10/Materials | Identified exit to Materials 740 | -10/Materials | Identified exit to Mines 741 | -10/Materials | Entered Mines 880 | -10/Mines | Learned Materials trap positions 886 | -10/Mines | Joined a pair of Derelicts in attacking an 0b10 outpost 1035 | -10/Mines | Received a Rocket Launcher from a helpful Derelict 1044 | -10/Mines | Discovered exit to Materials (range 15) 1050 | -10/Mines | Entered Materials 1050 | -9/Materials | Evolved 2 slots: Utility x2 1051 | -9/Materials | Loaded intel: 19 trap records 1147 | -9/Materials | Self-destructed Last Messages --------------- Terminal linked with 3 systems. Awaiting botnet instructions. >>Trojan(Track) Trojan loaded successfully. Testing... Tracking enabled and active. 01120_ W-16 Scout sends out distress signal. 01123_ Lgt. Ion Engine destroyed. [Achievement: Part-time Excavator] 01133_ Connecting with Terminal... 01133_ ALERT: Suspicious activity at Terminal M010. Dispatching Investigation squad. 01136_ Connecting with Terminal... >>Recall(Investigation) Establishing remote squad link... Recalled investigation squad EU26M62BP2. 01139_ K-01 Serf cleans the Fusion Modulator. 01142_ Critical hit (Burn: +37). 01142_ Flight Unit destroyed. 01143_ K-01 Serf collects debris. Map ----- +----------------------------------------------------+ | ????# #?????# # # "#???????????????????????? | | ????# #?????### #= #??????????###??????????? | | ????# #???????# ########??????????# ??????????? | | ????# #???????# #########?????????# ??????????? | | ????#+######### # """ #?????????# "??????????? | | ????# # # "T" #?????????# "??????????? | | ????# + + #?????????# "??????????? | | ????# #^^^# |[ #?????????# ??????????? | | ????# #^^^# |[ #?????????###??????????? | | ???########"### #################### ??????????? | | ???# ! !%# ??????????? | | ???# = # ??????????? | | ??## =%! " """ """ ??????????? | | ??# """!""" #r "T" """ ??????????? | | ??## """ """ # r """ ??????????? | | ???# """ """ # ??????????? | | ???# # k ??????????? | | ???# """T""" #a ??????????? | | ???########### g g############??????????? | | ?????????????# # #????????????? | | ?????????????# """ g # !] #????????????? | | ############# """ # !??????????????????? | | """ # ???????????????????? | | a ????????????????????? | | Y#?????????????????????? | | ##########+##### """ @ #?????????????????????? | | ???????# # """ #?????????????????????? | | ???????# # """ #?????????????????????? | | ???????# # #?????????????????????? | | ???????# #] #?????????????????????? | | ???????# # #?????????????????????? | | ???????#/ # "T" #?????????????????????? | | ???????# # """ ###?????????????????????? | | ???????# ; #???????????????????????? | | ???????# # #???????????????????????? | | ???????############+## #???????????????????????? | | ???????????# # #???????????????????????? | | ???????????# # #???????????????????????? | | ???????????# # #???????????????????????? | | ???????????# """T""" # #???????????????????????? | | ???????????########### #???????????????????????? | | ??????????????????^??? #???????????????????????? | | ?????????????????????? #???????????????????????? | | ?????????????????^???? ????????????????????????? | | ???????????????^?????????????????????????????????? | | ?????????????????????????????????????????????????? | | ?????????????????????????????????????????????????? | | ???????????????^?????????????????????????????????? | | ?????????????????^???????????????????????????????? | | ?????????????????????????????????????????????????? | +----------------------------------------------------+ Best States ------------- Heat Dissipation 28 Energy Generation 10 Energy Capacity 125 Matter Stores 300 Matter Capacity 300 Sight Range 16 Terrain Scan Density 10 ECM Strength 1 Evasion (%) 63 Item Schematics ----------------- None Robot Schematics ------------------ None Fabricated ------------ Nothing Repaired ---------- Nothing Studied --------- None Alien Tech Used ----------------- None Achievements -------------- Part-time Excavator Challenges ------------ None Game ------ Seed InsulatedFrostWartreads Manual? 0 Play Time 00:18:58 Cumulative 18.3 hours Start 2026.08.13 @ 14:47:18 End 2026.08.13 @ 15:06:36 Sessions 1 Manual Loads 0 Difficulty Rogue Special Mode None Game No. 56 Rogue 49 Adventurer 7 Explorer 0 Win Type - Total 0 Types 0/0/0/0/0/0/0/0/0/0 Lore% 11 Gallery% 21 Achievement% 17 Wizard Run 0 Options --------- Layout 1 ASCII 0 Keyboard 0 Movement Mouse Keybinds 0 Fullscreen 1 Font 24/Smallcaps Map View 50x35 Zoom Use 0% Tactical HUD 1 Map Filters NONE Filters NONE Steam 1 RUN: 8f9a830a-c993-42aa-9e9f-1d3b4bd2b2c1